bitfinex-derivatives/quotes_SOLF0:USTF0_20260312
["timestamp","ask_amount","ask_price","bid_price","bid_amount"]
[1773345574409,3.39453447,86.86,86.8,3.39453447]
[1773345574410,3.39453447,86.86,86.81,5.98294269]
[1773345574708,8.90734662,86.875,86.811,5.98294269]
[1773345575012,3.39453447,86.85,86.811,5.98294269]
[1773345575206,3.39453447,86.84,86.791,5.9908987]
[1773345575411,3.39453447,86.83,86.791,5.9908987]
[1773345575712,3.39453447,86.84,86.804,5.9908987]
[1773345576107,34.56,86.87,86.785,5.9908987]
[1773345576108,3.39453447,86.82,86.785,5.9908987]
[1773345577014,3.39453447,86.81,86.761,6.01605638]
[1773345577316,3.39453447,86.8,86.761,6.01605638]
[1773345577611,3.39453447,86.81,86.761,6.01605638]
[1773345577812,3.39453447,86.82,86.775,6.01605638]
[1773345578212,3.39453447,86.81,86.775,6.01605638]
[1773345578610,3.39453447,86.79,86.753,6.01605638]
[1773345578916,3.39453447,86.8,86.762,6.01605638]
[1773345579209,3.39453447,86.82,86.762,6.01605638]
[1773345580411,10.364,86.829,86.779,6.01983934]
[1773345580611,3.39453447,86.82,86.779,6.01983934]
[1773345580908,3.39453447,86.81,86.762,10.372]
[1773345581108,3.39453447,86.81,86.763,6.0215969]
[1773345582110,3.39453447,86.8,86.763,6.0215969]
[1773345582315,3.39453447,86.83,86.781,6.0215969]
[1773345582617,3.39453447,86.82,86.781,6.0215969]
[1773345583009,10.366,86.818,86.781,6.0215969]
[1773345583312,3.39453447,86.81,86.766,6.03341679]
[1773345585212,3.39453447,86.82,86.771,6.03446961]
[1773345585913,10.364,86.827,86.779,6.03446961]
[1773345586113,10.364,86.827,86.781,6.03446961]
[1773345586319,3.39453447,86.82,86.781,6.03446961]
[1773345587221,3.39453447,86.83,86.781,6.03446961]
[1773345587415,3.39453447,86.82,86.77,6.0693888]
[1773345588320,8.89678831,86.845,86.78,16.4393888]
[1773345588321,10.364,86.828,86.78,16.4393888]
[1773345588520,3.39453447,86.82,86.78,16.4393888]
[1773345588917,3.39453447,86.81,86.765,6.0693888]
[1773345589121,3.39453447,86.82,86.77,3.39453447]
[1773345589313,3.39453447,86.82,86.771,6.06606688]
[1773345590317,3.39453447,86.81,86.771,6.06606688]
[1773345590625,3.39453447,86.82,86.779,6.06606688]
[1773345591317,3.39453447,86.82,86.77,3.39453447]
[1773345591318,3.39453447,86.81,86.772,16.43369308]
[1773345591724,3.39453447,86.81,86.773,6.06269308]
[1773345593928,10.367,86.809,86.773,6.06269308]
[1773345594329,3.39453447,86.82,86.773,6.06269308]
[1773345594730,10.366,86.816,86.773,6.06269308]
[1773345595226,10.365,86.825,86.784,6.06085552]
[1773345595426,10.365,86.825,86.75,36.26]
[1773345595427,3.39453447,86.82,86.766,6.06085552]
[1773345595730,3.39689492,86.83,86.771,6.06085552]
[1773345596127,3.39689492,86.82,86.771,6.06085552]
[1773345596327,34.56,86.843,86.77,3.39689492]
[1773345596328,3.39689492,86.83,86.789,6.06085552]
[1773345597527,8.89713872,86.852,86.753,36.28]
[1773345597528,3.39689492,86.82,86.775,6.05566681]
[1773345598024,3.39689492,86.81,86.761,6.05566681]
[1773345598833,3.39689492,86.8,86.761,6.05566681]
[1773345599130,3.39689492,86.79,86.728,6.05961975]
[1773345599335,3.39689492,86.79,86.741,6.05961975]
[1773345600028,3.39689492,86.8,86.741,6.05961975]
[1773345600328,3.39689492,86.78,86.736,6.05961975]
[1773345600529,3.39689492,86.8,86.741,6.05961975]
[1773345600729,3.39689492,86.81,86.761,6.05961975]
[1773345601830,3.39689492,86.8,86.741,6.07955808]
[1773345602023,3.39689492,86.81,86.751,6.07955808]
[1773345602225,8.90391237,86.821,86.751,6.07955808]
[1773345602432,3.39689492,86.81,86.762,6.07955808]
[1773345602632,3.39689492,86.83,86.771,6.07955808]
[1773345602926,10.365,86.821,86.781,6.07955808]
[1773345603130,3.39689492,86.82,86.773,10.371]
[1773345603522,3.39689492,86.81,86.766,6.07955808]
[1773345603929,3.39689492,86.8,86.755,10.373]
[1773345604129,3.39689492,86.8,86.751,6.05313211]
[1773345604330,3.39689492,86.79,86.751,6.05313211]
[1773345604832,3.39689492,86.82,86.771,6.05313211]
[1773345605231,13.76189492,86.82,86.771,16.42413211]
[1773345606124,13.76189492,86.82,86.774,6.05798268]
[1773345606527,10.365,86.82,86.774,6.05798268]
[1773345606733,13.76189492,86.82,86.774,6.05798268]
[1773345607436,3.39689492,86.83,86.78,3.39689492]
[1773345607732,3.39689492,86.82,86.761,6.19145832]
[1773345608030,70.84,86.841,86.761,6.19145832]
[1773345608031,3.39689492,86.81,86.761,6.19145832]
[1773345608935,10.367,86.808,86.761,6.19145832]
[1773345610734,10.366,86.818,86.77,3.39689492]
[1773345610938,3.39689492,86.83,86.771,6.24300197]
[1773345611134,3.39689492,86.83,86.781,6.24300197]
[1773345611434,3.39689492,86.82,86.77,3.39689492]
[1773345611737,3.39689492,86.81,86.772,6.2471472]
[1773345612130,3.39689492,86.81,86.75,3.39689492]
[1773345612131,3.39689492,86.81,86.751,6.2471472]
[1773345612330,3.39689492,86.81,86.756,6.2471472]
[1773345612933,3.39689492,86.8,86.756,6.2471472]
[1773345613230,10.368,86.798,86.756,6.2471472]
[1773345613632,3.39689492,86.82,86.761,6.16509354]
[1773345614228,10.367,86.808,86.762,16.53709354]
[1773345614435,3.39689492,86.82,86.762,6.16509354]
[1773345614635,3.39689492,86.82,86.771,6.16509354]
[1773345614831,34.56,86.828,86.771,6.16509354]
[1773345615436,3.39689492,86.83,86.773,6.16946293]
[1773345615637,3.39689492,86.83,86.781,6.16946293]
[1773345615839,10.363,86.842,86.797,10.368]
[1773345616743,10.363,86.842,86.802,6.16946293]
[1773345617641,13.75889492,86.85,86.804,10.367]
[1773345618139,13.75889492,86.85,86.804,16.5860199]
[1773345618438,10.361,86.859,86.811,6.2190199]
[1773345618640,3.39689492,86.86,86.811,6.2190199]
[1773345619346,3.39689492,86.85,86.796,6.24315449]
[1773345619547,3.39689492,86.84,86.796,6.24315449]
[1773345620342,3.39689492,86.85,86.8,3.39689492]
[1773345620544,3.39689492,86.85,86.801,6.24315449]
[1773345620744,37.95689492,86.86,86.801,6.24315449]
[1773345621146,10.361,86.855,86.811,6.33416272]
[1773345622240,10.361,86.855,86.812,10.366]
[1773345622640,10.361,86.855,86.812,16.70016272]
[1773345622843,10.36,86.862,86.82,3.39689492]
[1773345623145,10.36,86.862,86.812,16.70016272]
[1773345623941,10.36,86.862,86.813,6.33500229]
[1773345624143,10.36,86.862,86.82,9.73189721]
[1773345624342,10.36,86.862,86.821,6.33500229]
[1773345626844,10.361,86.854,86.821,6.33500229]
[1773345628045,10.362,86.848,86.806,6.23091807]
[1773345629951,71.83247774,87.015,86.784,6.23062604]
[1773345629952,3.39689492,86.83,86.784,6.23062604]
[1773345630450,3.39689492,86.81,86.77,6.23062604]
[1773345631049,10.367,86.808,86.77,6.23062604]
[1773345632044,10.367,86.808,86.771,6.23577168]
[1773345632347,10.367,86.808,86.723,34.56]
[1773345632348,3.39689492,86.8,86.757,6.23577168]
[1773345632846,3.39689492,86.79,86.741,6.23577168]
[1773345633149,3.39689492,86.8,86.741,6.23577168]
[1773345633848,10.368,86.797,86.741,6.23577168]
[1773345634445,10.368,86.797,86.744,16.60290938]
[1773345634647,10.368,86.797,86.751,6.22890938]
[1773345636754,3.39689492,86.82,86.771,6.24490727]
[1773345636954,3.39689492,86.83,86.771,6.24490727]
[1773345637154,34.56,86.843,86.781,6.24719164]
[1773345637155,10.364,86.831,86.781,6.24719164]
[1773345637455,3.39689492,86.84,86.781,6.24719164]
[1773345638649,3.39689492,86.83,86.781,6.24719164]
[1773345638850,3.39689492,86.83,86.78,13.76689492]
[1773345638851,10.364,86.831,86.791,6.24719164]
[1773345639051,3.39689492,86.84,86.791,6.24719164]
[1773345640850,10.364,86.832,86.791,6.24719164]
[1773345642652,3.39689492,86.83,86.791,6.24719164]
[1773345643357,10.364,86.828,86.791,6.24719164]
[1773345644858,10.364,86.828,86.782,10.37]
[1773345645455,3.39689492,86.82,86.777,6.27177774]
[1773345645656,3.39689492,86.8,86.763,6.28056823]
[1773345646359,3.39689492,86.79,86.763,6.28056823]
[1773345646956,34.56,86.825,86.763,6.28056823]
[1773345647255,3.39689492,86.8,86.763,6.28056823]
[1773345647960,13.76489492,86.8,86.763,6.28056823]
[1773345649257,10.367,86.807,86.763,6.28056823]
[1773345652057,10.366,86.815,86.766,6.27422705]
[1773345652260,3.39689492,86.83,86.771,6.27422705]
[1773345653651,3.39689492,86.83,86.78,3.39689492]
[1773345653856,10.365,86.826,86.781,6.270493]
[1773345654650,10.365,86.82,86.781,6.270493]
[1773345654854,13.76189492,86.82,86.781,6.270493]
[1773345655564,13.76192374,86.82,86.781,6.270493]
[1773345657766,10.366,86.814,86.781,6.270493]
[1773345660666,10.367,86.807,86.781,6.270493]
[1773345660865,10.367,86.807,86.765,6.16766301]
[1773345663070,10.367,86.807,86.768,6.16990237]
[1773345663269,3.39692374,86.81,86.768,6.16990237]
[1773345663569,10.366,86.814,86.768,6.16990237]
[1773345663768,10.366,86.814,86.771,6.15811377]
[1773345664966,10.365,86.822,86.776,6.15811377]
[1773345665869,10.366,86.815,86.777,6.15714545]
[1773345668168,34.56,86.836,86.763,10.372]
[1773345668364,3.39692374,86.79,86.748,6.15792657]
[1773345668568,3.39692374,86.79,86.695,27.66740011]
[1773345668569,3.39692374,86.78,86.731,6.15792657]
[1773345668768,3.39692374,86.77,86.731,6.15792657]
[1773345669070,3.39692374,86.78,86.733,6.15792657]
[1773345669664,3.39692374,86.79,86.737,6.15838812]
[1773345670272,36.28,86.797,86.751,6.15838812]
[1773345670670,3.39692374,86.82,86.771,6.15838812]
[1773345670866,3.39692374,86.83,86.771,6.15838812]
[1773345671976,10.365,86.819,86.771,6.15838812]
[1773345675677,10.365,86.819,86.773,6.25492868]
[1773345686388,70.84,86.838,86.781,6.25571579]
[1773345686578,3.39692374,86.87,86.82,9.65263953]
[1773345686986,10.361,86.858,86.82,6.25571579]
[1773345689887,10.361,86.858,86.821,6.31416568]
[1773345690090,10.36,86.866,86.821,6.31416568]
[1773345690285,10.36,86.866,86.774,20.742]
[1773345690286,3.39692374,86.88,86.831,6.31416568]
[1773345690892,8.90590548,86.896,86.831,6.31416568]
[1773345691087,3.39692374,86.87,86.82,3.39692374]
[1773345691793,3.39692374,86.86,86.803,6.315087]
[1773345692197,3.39692374,86.85,86.803,6.315087]
[1773345692400,3.39692374,86.86,86.803,6.315087]
[1773345692594,10.362,86.849,86.806,6.315087]
[1773345694497,3.39692374,86.84,86.791,6.36123635]
[1773345695296,3.39692374,86.84,86.794,6.35584083]
[1773345696399,3.39692374,86.85,86.794,6.35584083]
[1773345696890,10.363,86.839,86.794,6.35584083]
[1773345699598,3.39692374,86.82,86.77,9.75371744]
[1773345699804,3.39692374,86.81,86.771,6.3567937]
[1773345700202,10.367,86.809,86.771,6.3567937]
[1773345701204,3.39692374,86.81,86.771,6.3567937]
[1773345703506,3.39692374,86.82,86.773,6.36536056]
[1773345703704,10.365,86.825,86.773,6.36536056]
[1773345704906,10.365,86.825,86.782,6.36536056]
[1773345707701,3.39692374,86.83,86.785,6.36618984]
[1773345708501,10.364,86.829,86.787,10.369]
[1773345708703,10.364,86.829,86.788,6.36618984]
[1773345713708,3.39692374,86.82,86.779,10.37]
[1773345716504,8.89726646,86.853,86.761,6.36681188]
[1773345716505,3.39692374,86.8,86.761,6.36681188]
[1773345717110,3.39692374,86.81,86.764,6.32138769]
[1773345717614,3.39791901,86.81,86.764,6.32138769]
[1773345717806,10.367,86.807,86.767,6.32138769]
[1773345718707,10.367,86.807,86.769,6.32138769]
[1773345720714,3.39791901,86.8,86.755,42.6111986]
[1773345721019,34.56,86.829,86.755,42.6111986]
[1773345721020,3.39791901,86.79,86.755,6.3311986]
[1773345722417,3.39791901,86.8,86.757,6.33115834]
[1773345723919,3.39791901,86.8,86.759,6.33051387]
[1773345724926,10.368,86.798,86.759,6.33051387]
[1773345725923,3.39791901,86.79,86.758,10.373]
[1773345729228,10.368,86.798,86.758,10.373]
[1773345729229,10.368,86.798,86.759,6.32822556]
[1773345730229,10.368,86.798,86.761,6.32822556]
[1773345730426,3.39791901,86.81,86.761,6.32822556]
[1773345731926,10.367,86.809,86.77,6.32865964]
[1773345732128,3.39791901,86.81,86.77,6.32865964]
[1773345732328,3.39791901,86.8,86.77,6.32865964]
[1773345732727,10.368,86.799,86.77,6.32865964]
[1773345732927,10.368,86.799,86.762,10.372]
[1773345733129,3.39791901,86.79,86.757,6.32865964]
[1773345734629,10.368,86.799,86.758,10.373]
[1773345738133,10.368,86.799,86.759,6.27751949]
[1773345741033,10.368,86.799,86.75,39.67791901]
[1773345741034,10.368,86.799,86.761,6.27021434]
[1773345743435,20.729,86.831,86.761,6.27021434]
[1773345743436,10.366,86.814,86.761,6.27021434]
[1773345743832,10.367,86.808,86.771,10.371]
[1773345745131,36.28,86.842,86.761,6.27021434]
[1773345745132,3.39791901,86.8,86.761,6.27021434]
[1773345745830,10.368,86.797,86.761,6.27021434]
[1773345747940,3.39791901,86.8,86.764,6.28144887]
[1773345748840,3.39791901,86.8,86.765,10.372]
[1773345749140,10.367,86.804,86.765,10.372]
[1773345749141,10.367,86.804,86.766,6.28121814]
[1773345754041,10.368,86.797,86.756,10.373]
[1773345756947,3.39791901,86.79,86.757,6.27856324]
[1773345757345,3.39791901,86.77,86.733,6.27847046]
[1773345758146,10.371,86.769,86.733,6.27847046]
[1773345759249,3.39791901,86.76,86.725,36.28]
[1773345760153,3.39791901,86.73,86.695,6.27719204]
[1773345760754,3.39791901,86.73,86.696,6.27719204]
[1773345762154,3.39791901,86.74,86.698,6.32179784]
[1773345762455,10.374,86.744,86.701,6.32179784]
[1773345763955,3.39791901,86.74,86.701,6.32179784]
[1773345764650,36.28,86.762,86.701,6.32179784]
[1773345764849,3.39791901,86.75,86.701,6.32179784]
[1773345766056,3.39791901,86.75,86.703,6.26916438]
[1773345766356,10.373,86.754,86.703,6.26916438]
[1773345766357,3.39791901,86.74,86.703,6.26916438]
[1773345767052,10.373,86.754,86.705,6.28038194]
[1773345767360,3.39791901,86.75,86.705,6.28038194]
[1773345767551,3.39791901,86.74,86.705,6.28038194]
[1773345768747,10.374,86.748,86.679,11.70150966]
[1773345768748,3.39791901,86.73,86.692,6.28038194]
[1773345770449,3.39791901,86.74,86.695,6.23874969]
[1773345771349,3.39791901,86.74,86.697,6.23879639]
[1773345771555,3.39791901,86.73,86.697,6.23879639]
[1773345772355,3.39791901,86.74,86.697,6.23879639]
[1773345773352,10.374,86.748,86.703,6.234982]
[1773345774554,3.39791901,86.74,86.703,6.234982]
[1773345777559,3.40297338,86.74,86.703,6.234982]
[1773345778160,10.374,86.748,86.703,6.234982]
[1773345779061,10.374,86.748,86.705,6.2432572]
[1773345779961,10.374,86.748,86.708,6.24637656]
[1773345783370,20.74,86.785,86.679,11.53770698]
[1773345783371,3.40297338,86.74,86.696,6.22513987]
[1773345783665,3.40297338,86.71,86.671,6.22513987]
[1773345784063,3.40297338,86.7,86.652,6.22513987]
[1773345784560,3.40297338,86.71,86.652,6.22513987]
[1773345784970,3.40297338,86.71,86.67,6.22513987]
[1773345787671,3.40297338,86.73,86.675,6.24158406]
[1773345787862,34.57,86.765,86.701,6.24158406]
[1773345787863,3.40297338,86.75,86.701,6.24158406]
[1773345789964,10.375,86.741,86.701,6.24158406]
[1773345791275,10.374,86.748,86.701,6.24158406]
[1773345792272,10.374,86.748,86.704,6.23278194]
[1773345792973,10.373,86.756,86.706,6.23278194]
[1773345793969,10.373,86.756,86.7,3.40297338]
[1773345793970,10.373,86.756,86.71,6.21024114]
[1773345794566,10.374,86.749,86.71,6.21024114]
[1773345800382,10.372,86.761,86.714,10.378]
[1773345800573,3.40297338,86.78,86.731,6.19565985]
[1773345801980,10.371,86.775,86.731,6.19565985]
[1773345803383,10.371,86.775,86.686,20.763]
[1773345803384,3.40297338,86.8,86.751,6.22271305]
[1773345803583,3.40297338,86.81,86.761,6.22271305]
[1773345804779,10.367,86.806,86.761,6.22271305]
[1773345807677,10.367,86.806,86.751,10.373]
[1773345807678,10.366,86.815,86.771,6.25228246]
[1773345808782,8.92741401,86.832,86.751,6.25228246]
[1773345808985,3.40297338,86.82,86.771,6.25228246]
[1773345809985,10.365,86.819,86.771,6.25228246]
[1773345810991,10.364,86.828,86.78,3.40297338]
[1773345811185,10.364,86.828,86.781,6.3547793]
[1773345812885,3.40297338,86.83,86.747,36.28]
[1773345812886,36.28,86.872,86.821,6.31579402]
[1773345813088,3.40297338,86.88,86.831,6.31579402]
[1773345813485,10.358,86.879,86.831,6.31579402]
[1773345814087,3.40297338,86.87,86.831,6.31579402]
[1773345816093,10.36,86.867,86.831,6.31579402]
[1773345816992,10.359,86.875,86.831,6.31579402]
[1773345817695,3.40297338,86.87,86.831,6.31579402]
[1773345818397,10.359,86.875,86.831,6.31579402]
[1773345819590,10.36,86.868,86.831,6.31579402]
[1773345819796,3.40297338,86.86,86.818,6.32725992]
[1773345820693,13.76197338,86.87,86.818,6.32725992]
[1773345822092,10.36,86.863,86.818,6.32725992]
[1773345822293,3.40297338,86.88,86.821,6.32811328]
[1773345823904,13.76097338,86.88,86.827,6.32322095]
[1773345824094,3.40297338,86.88,86.827,6.32322095]
[1773345824292,3.40297338,86.87,86.827,6.32322095]
[1773345830411,10.358,86.882,86.832,6.32939595]
[1773345830614,3.40297338,86.88,86.832,6.32939595]
[1773345831910,3.40297338,86.88,86.837,6.32452876]
[1773345833313,10.358,86.878,86.837,6.32452876]
[1773345833714,3.40297338,86.87,86.837,6.32452876]
[1773345835914,10.359,86.872,86.837,6.32452876]
[1773345838014,10.36,86.866,86.824,6.33696269]
[1773345839824,10.36,86.866,86.826,6.33947995]
[1773345840209,34.57,86.901,86.812,36.26]
[1773345840210,3.39313012,86.86,86.814,6.33947995]
[1773345840521,3.39313012,86.82,86.781,6.33947995]
[1773345840714,3.39313012,86.8,86.757,6.33947995]
[1773345841021,3.39313012,86.81,86.761,6.33947995]
[1773345841718,3.39313012,86.82,86.776,6.33716733]
[1773345841912,36.26,86.851,86.776,6.33716733]
[1773345841913,3.39313012,86.83,86.776,6.33716733]
[1773345842109,3.39313012,86.83,86.781,6.33716733]
[1773345842919,3.39313012,86.83,86.786,6.33716733]
[1773345843811,3.39313012,86.82,86.786,6.33716733]
[1773345850324,3.39313012,86.83,86.786,6.33716733]
[1773345852020,3.39313012,86.83,86.788,6.37496397]
[1773345852218,3.39313012,86.8,86.762,6.37496397]
[1773345852417,3.39313012,86.79,86.762,6.37496397]
[1773345852621,36.26,86.851,86.762,6.37496397]
[1773345852622,3.39313012,86.8,86.762,6.37496397]
[1773345853017,3.39313012,86.82,86.773,6.37496397]
[1773345853924,3.39313012,86.82,86.782,6.37299888]
[1773345854125,3.39313012,86.83,86.782,6.37299888]
[1773345854826,10.364,86.829,86.785,10.369]
[1773345855023,3.39313012,86.82,86.769,6.37299888]
[1773345855226,10.368,86.799,86.769,6.37299888]
[1773345856429,3.39313012,86.8,86.769,6.37299888]
[1773345856723,3.39313012,86.81,86.769,6.37299888]
[1773345858030,3.39313012,86.81,86.77,6.36739164]
[1773345859030,3.39313012,86.82,86.775,6.36739164]
[1773345859829,3.39313012,86.82,86.778,10.37]
[1773345860037,3.39313012,86.82,86.779,6.36728953]
[1773345860427,10.364,86.827,86.787,10.369]
[1773345863840,10.364,86.827,86.788,6.36708408]
[1773345865435,3.39313012,86.82,86.788,6.36708408]
[1773345872834,3.39313012,86.82,86.77,3.39313012]
[1773345872835,3.39313012,86.83,86.79,6.3690518]
[1773345873442,3.39313012,86.84,86.792,6.36916957]
[1773345874241,10.362,86.846,86.803,6.36916957]
[1773345874741,3.39313012,86.85,86.803,6.36916957]
[1773345874939,3.39313012,86.88,86.831,6.36916957]
[1773345875937,10.358,86.884,86.841,6.37452719]
[1773345877551,10.358,86.884,86.802,36.28]
[1773345877552,3.39313012,86.91,86.851,6.37504921]
[1773345878141,3.39313012,86.9,86.851,6.37504921]
[1773345878943,3.39313012,86.89,86.856,6.37504921]
[1773345879148,3.39313012,86.89,86.841,6.37504921]
[1773345879748,13.75013012,86.89,86.843,6.37794943]
[1773345882752,10.358,86.883,86.843,6.37794943]
[1773345887950,10.357,86.894,86.851,6.37734259]
[1773345890157,10.357,86.888,86.851,6.37734259]
[1773345893067,36.26,86.907,86.86,3.39313012]
[1773345893265,3.39313012,86.92,86.861,6.37586971]
[1773345894965,10.355,86.907,86.868,6.37586971]
[1773345895172,3.39313012,86.91,86.861,6.38538007]
[1773345895368,3.39313012,86.89,86.848,6.38538007]
[1773345895569,10.358,86.88,86.848,6.38538007]
[1773345896068,13.75113012,86.88,86.848,6.38538007]
[1773345897665,10.358,86.88,86.848,6.38538007]
[1773345900369,10.358,86.88,86.805,36.26]
[1773345900370,3.391491,86.89,86.839,6.36453228]
[1773345900572,3.391491,86.89,86.841,6.36453228]
[1773345900773,3.391491,86.91,86.851,6.36453228]
[1773345901172,10.356,86.901,86.86,3.391491]
[1773345901368,3.391491,86.92,86.861,6.36655432]
[1773345901563,3.391491,86.91,86.861,6.36655432]
[1773345902567,3.391491,86.89,86.831,6.36655432]
[1773345902769,3.391491,86.88,86.831,6.36655432]
[1773345903266,10.359,86.871,86.834,6.35869892]
[1773345903868,10.358,86.878,86.834,6.35869892]
[1773345904070,3.391491,86.88,86.834,6.35869892]
[1773345904372,3.391491,86.84,86.807,6.35869892]
[1773345904578,3.391491,86.85,86.807,6.35869892]
[1773345904763,3.391491,86.86,86.808,6.35869892]
[1773345905265,36.24,86.876,86.808,6.35869892]
[1773345905266,3.391491,86.85,86.808,6.35869892]
[1773345906277,3.391491,86.85,86.778,36.24]
[1773345906278,3.391491,86.84,86.791,6.36164744]
[1773345907175,36.24,86.876,86.811,6.36803743]
[1773345907176,3.391491,86.86,86.811,6.36803743]
[1773345908467,3.391491,86.85,86.811,6.36803743]
[1773345908976,3.391491,86.86,86.811,6.36803743]
[1773345909972,10.36,86.858,86.813,6.37782136]
[1773345910168,3.391491,86.85,86.813,6.37782136]
[1773345910773,3.391491,86.85,86.815,6.37782136]
[1773345911076,3.391491,86.86,86.815,6.37782136]
[1773345912177,10.36,86.857,86.817,6.37582873]
[1773345912372,3.391491,86.85,86.817,6.37582873]
[1773345912579,3.391491,86.85,86.791,6.37582873]
[1773345912772,3.391491,86.85,86.808,6.37582873]
[1773345912977,3.391491,86.86,86.808,6.37582873]
[1773345913277,10.359,86.865,86.821,6.36886136]
[1773345914280,3.391491,86.86,86.821,6.36886136]
[1773345914880,3.391491,86.86,86.823,6.36886136]
[1773345915278,10.36,86.859,86.823,6.36886136]
[1773345915675,3.391491,86.86,86.823,6.36886136]
[1773345916284,3.391491,86.86,86.827,6.36988388]
[1773345917084,10.359,86.866,86.827,6.36988388]
[1773345917877,3.391491,86.87,86.83,6.37007557]
[1773345918188,3.391491,86.88,86.831,6.37007557]
[1773345918887,10.357,86.881,86.844,6.37007557]
[1773345919889,3.391491,86.89,86.85,6.41415525]
[1773345920289,10.356,86.889,86.85,6.41415525]
[1773345920479,3.391491,86.9,86.851,6.41415525]
[1773345920788,3.391491,86.91,86.861,6.41415525]
[1773345921989,3.391491,86.91,86.866,6.37661691]
[1773345923289,43.43604517,86.933,86.838,36.26]
[1773345923290,8.86604517,86.932,86.887,16.67444489]
[1773345923487,3.391491,86.93,86.888,6.31844489]
[1773345923888,3.391491,86.92,86.888,6.31844489]
[1773345925094,8.85916792,86.961,86.888,6.31844489]
[1773345925302,3.391491,86.93,86.888,6.31844489]
[1773345926194,3.391491,86.92,86.888,6.31844489]
[1773345926389,8.85916792,86.961,86.868,6.27663538]
[1773345926593,3.391491,86.92,86.871,6.27663538]
[1773345926789,3.391491,86.93,86.871,6.27663538]
[1773345927594,3.391491,86.93,86.881,6.27138303]
[1773345929791,3.391491,86.93,86.883,6.45944993]
[1773345930385,36.24,86.96,86.891,6.45944993]
[1773345930592,3.391491,86.93,86.891,6.45944993]
[1773345931384,3.391491,86.94,86.891,6.45944993]
[1773345931988,8.84271809,86.966,86.894,6.46187996]
[1773345932185,3.391491,86.95,86.9,3.391491]
[1773345932390,3.391491,86.95,86.901,6.46187996]
[1773345932692,36.24,86.981,86.885,6.46187996]
[1773345932693,3.391491,86.93,86.885,6.46187996]
[1773345933693,10.35,86.937,86.885,6.46187996]
[1773345933993,3.391491,86.92,86.885,6.46187996]
[1773345935497,34.57,86.963,86.885,6.46187996]
[1773345935498,3.391491,86.94,86.885,6.46187996]
[1773345935694,34.57,86.963,86.885,6.46187996]
[1773345935695,3.391491,86.93,86.885,6.46187996]
[1773345935892,3.391491,86.92,86.875,6.58832688]
[1773345936492,3.391491,86.92,86.885,6.58832688]
[1773345938497,10.353,86.918,86.885,6.58832688]
[1773345938995,3.391491,86.92,86.885,6.58832688]
[1773345940802,3.391491,86.92,86.872,6.59442606]
[1773345941005,10.352,86.919,86.876,10.358]
[1773345941503,10.352,86.919,86.876,16.95312519]
[1773345941807,34.57,86.942,86.863,6.59512519]
[1773345942000,3.391491,86.9,86.863,6.59512519]
[1773345942303,3.391491,86.92,86.865,6.59512519]
[1773345943900,10.353,86.913,86.869,17.00057911]
[1773345944103,36.24,86.94,86.842,6.64257911]
[1773345944104,3.391491,86.89,86.842,6.64257911]
[1773345944501,3.391491,86.91,86.861,6.64257911]
[1773345945306,10.353,86.912,86.871,6.64480187]
[1773345945507,3.391491,86.91,86.871,6.64480187]
[1773345946108,3.391491,86.9,86.855,6.64480187]
[1773345946704,3.391491,86.89,86.84,10.03629287]
[1773345947009,3.391491,86.89,86.84,6.64480187]
[1773345947211,3.391491,86.89,86.847,10.361]
[1773345948814,10.356,86.888,86.847,10.361]
[1773345949006,10.356,86.888,86.848,6.63796616]
[1773345951507,3.391491,86.88,86.848,6.63796616]
[1773345951909,3.391491,86.9,86.851,10.36]
[1773345953014,10.356,86.892,86.848,6.63796616]
[1773345953215,3.391491,86.89,86.848,6.63796616]
[1773345954014,3.391491,86.9,86.85,6.64578874]
[1773345955115,10.355,86.895,86.854,6.64452499]
[1773345955917,10.354,86.903,86.861,6.64452499]
[1773345956613,10.355,86.897,86.861,6.64452499]
[1773345957012,13.747491,86.89,86.847,6.64452499]
[1773345958316,10.357,86.884,86.847,6.64452499]
[1773345960111,3.391491,86.89,86.847,6.64452499]
[1773345960316,3.391491,86.9,86.847,6.64452499]
[1773345961515,10.356,86.888,86.847,6.64452499]
[1773345963515,3.39111554,86.9,86.847,6.64452499]
[1773345963820,3.39111554,86.89,86.847,6.64452499]
[1773345964920,10.358,86.876,86.847,6.64452499]
[1773345966518,3.39111554,86.88,86.83,6.64385281]